[Event "Titled Tuesday Blitz May 10 Early 2022"]
[White "Wagner, Dennis"]
[Black "Namitbir Singh Walia"]
[WhiteFideId "24650684"]
[BlackFideId "35071068"]
[WhiteElo "2355"]
[BlackElo "1565"]
[Result "1/2-1/2"]
[Round "10"]
[TimeControl "180+1"]
[Date "2022.05.11"]
[WhiteClock "0:00:19"]
[BlackClock "0:00:06"]

1. c4 {[%clk 0:03:00]}  Nf6 {[%clk 0:02:54]} 2. g3 {[%clk 0:03:00]}  e6 {[%clk 0:02:53]} 3. Bg2 {[%clk 0:03:00]}  d5 {[%clk 0:02:48]} 4. Nf3 {[%clk 0:03:00]}  c6 {[%clk 0:02:43]} 5. O-O {[%clk 0:02:59]}  Bd6 {[%clk 0:02:41]} 6. d4 {[%clk 0:02:57]}  O-O {[%clk 0:02:41]} 7. Nc3 {[%clk 0:02:56]}  Nbd7 {[%clk 0:02:41]} 8. Nd2 {[%clk 0:02:57]}  Re8 {[%clk 0:02:33]} 9. e4 {[%clk 0:02:57]}  dxe4 {[%clk 0:02:33]} 10. Ndxe4 {[%clk 0:02:58]}  Bc7 {[%clk 0:02:30]} 11. Re1 {[%clk 0:02:47]}  h6 {[%clk 0:02:29]} 12. Qc2 {[%clk 0:02:38]}  Nxe4 {[%clk 0:02:26]} 13. Nxe4 {[%clk 0:02:32]}  Nf6 {[%clk 0:02:27]} 14. Nc3 {[%clk 0:02:20]}  Qxd4 {[%clk 0:02:24]} 15. Be3 {[%clk 0:02:18]}  Qxc4 {[%clk 0:02:22]} 16. Rad1 {[%clk 0:02:18]}  e5 {[%clk 0:02:16]} 17. h3 {[%clk 0:02:10]}  Qe6 {[%clk 0:02:05]} 18. f4 {[%clk 0:01:56]}  exf4 {[%clk 0:01:45]} 19. Bxf4 {[%clk 0:01:56]}  Bb6+ {[%clk 0:01:46]} 20. Kh2 {[%clk 0:01:53]}  Qxe1 {[%clk 0:01:44]} 21. Rxe1 {[%clk 0:01:53]}  Rxe1 {[%clk 0:01:45]} 22. Ne2 {[%clk 0:01:38]}  Bf5 {[%clk 0:01:19]} 23. Qd2 {[%clk 0:01:29]}  Ra1 {[%clk 0:01:18]} 24. Be5 {[%clk 0:01:25]}  Re8 {[%clk 0:01:08]} 25. Bxf6 {[%clk 0:01:15]}  gxf6 {[%clk 0:01:07]} 26. Bf3 {[%clk 0:01:13]}  Be4 {[%clk 0:00:56]} 27. Bxe4 {[%clk 0:01:01]}  Rxe4 {[%clk 0:00:57]} 28. Nf4 {[%clk 0:01:01]}  Rae1 {[%clk 0:00:36]} 29. h4 {[%clk 0:00:57]}  Bg1+ {[%clk 0:00:26]} 30. Kh3 {[%clk 0:00:55]}  Bb6 {[%clk 0:00:24]} 31. Nh5 {[%clk 0:00:45]}  Rh1+ {[%clk 0:00:14]} 32. Kg2 {[%clk 0:00:44]}  Rg1+ {[%clk 0:00:05]} 33. Kh2 {[%clk 0:00:44]}  Ree1 {[%clk 0:00:03]} 34. Qxh6 {[%clk 0:00:37]}  Rh1+ {[%clk 0:00:04]} 35. Kg2 {[%clk 0:00:37]}  Reg1+ {[%clk 0:00:04]} 36. Kf3 {[%clk 0:00:38]}  Rf1+ {[%clk 0:00:05]} 37. Ke2 {[%clk 0:00:36]}  Rf2+ {[%clk 0:00:04]} 38. Kd3 {[%clk 0:00:36]}  Rd1+ {[%clk 0:00:04]} 39. Kc4 {[%clk 0:00:28]}  Rd4+ {[%clk 0:00:04]} 40. Kc3 {[%clk 0:00:24]}  Rf3+ {[%clk 0:00:05]} 41. Kc2 {[%clk 0:00:24]}  Rf2+ {[%clk 0:00:05]} 42. Kb3 {[%clk 0:00:24]}  Rf3+ {[%clk 0:00:06]} 43. Kc2 {[%clk 0:00:23]}  Rf2+ {[%clk 0:00:05]} 44. Kc1 {[%clk 0:00:20]}  Rf1+ {[%clk 0:00:05]} 45. Kc2 {[%clk 0:00:19]}  Rf2+ {[%clk 0:00:06]} 1/2-1/2


[Site "https://www.chess.com"]

[Event "Titled Tuesday Blitz May 10 Early 2022"]
[White "Yilmaz, Mustafa"]
[Black "Nagy, Gabor"]
[WhiteFideId "6302718"]
[BlackFideId "737119"]
[WhiteElo "2568"]
[BlackElo "2569"]
[Result "1-0"]
[Round "10"]
[TimeControl "180+1"]
[Date "2022.05.10"]
[WhiteClock "0:02:03"]
[BlackClock "0:02:11"]

1. d4 {[%clk 0:03:00]}  Nf6 {[%clk 0:02:59]} 2. c4 {[%clk 0:03:01]}  c5 {[%clk 0:03:00]} 3. d5 {[%clk 0:02:59]}  e6 {[%clk 0:03:00]} 4. Nc3 {[%clk 0:02:59]}  exd5 {[%clk 0:03:01]} 5. cxd5 {[%clk 0:03:00]}  d6 {[%clk 0:03:02]} 6. e4 {[%clk 0:03:00]}  g6 {[%clk 0:03:02]} 7. f4 {[%clk 0:03:00]}  Nfd7 {[%clk 0:03:02]} 8. Nf3 {[%clk 0:02:58]}  Bg7 {[%clk 0:03:01]} 9. Bd3 {[%clk 0:02:56]}  O-O {[%clk 0:03:00]} 10. O-O {[%clk 0:02:55]}  Na6 {[%clk 0:03:00]} 11. Be3 {[%clk 0:02:52]}  Re8 {[%clk 0:02:59]} 12. Bf2 {[%clk 0:02:51]}  Rb8 {[%clk 0:02:57]} 13. Bh4 {[%clk 0:02:48]}  Qa5 {[%clk 0:02:54]} 14. Kh1 {[%clk 0:02:44]}  b5 {[%clk 0:02:52]} 15. a4 {[%clk 0:02:42]}  b4 {[%clk 0:02:51]} 16. Nb5 {[%clk 0:02:43]}  Qb6 {[%clk 0:02:42]} 17. e5 {[%clk 0:02:26]}  dxe5 {[%clk 0:02:38]} 18. Bc4 {[%clk 0:02:17]}  e4 {[%clk 0:02:30]} 19. Ng5 {[%clk 0:02:17]}  h6 {[%clk 0:02:25]} 20. Nxf7 {[%clk 0:02:17]}  Kxf7 {[%clk 0:02:26]} 21. d6+ {[%clk 0:02:17]}  Re6 {[%clk 0:02:17]} 22. f5 {[%clk 0:02:18]}  gxf5 {[%clk 0:02:17]} 23. Qh5+ {[%clk 0:02:17]}  Kg8 {[%clk 0:02:12]} 24. Bxe6+ {[%clk 0:02:18]}  Kh8 {[%clk 0:02:13]} 25. Qe8+ {[%clk 0:02:04]}  Nf8 {[%clk 0:02:11]} 26. Bxc8 {[%clk 0:02:03]}  Qc6 {[%clk 0:02:11]} 27. Qxc6 {[%clk 0:02:03]} 1-0


[Site "https://www.chess.com"]

[Event "Titled Tuesday Blitz May 10 Early 2022"]
[White "Zhigalko, Sergei"]
[Black "Meshkovs, Nikita"]
[WhiteFideId "13502956"]
[BlackFideId "11602740"]
[WhiteElo "2662"]
[BlackElo "2506"]
[Result "1-0"]
[Round "10"]
[TimeControl "180+1"]
[Date "2022.05.10"]
[WhiteClock "0:00:04"]
[BlackClock "0:00:02"]

1. e4 {[%clk 0:03:00]}  c5 {[%clk 0:02:58]} 2. Nf3 {[%clk 0:03:00]}  Nc6 {[%clk 0:02:59]} 3. c3 {[%clk 0:03:01]}  Nf6 {[%clk 0:02:59]} 4. e5 {[%clk 0:03:01]}  Nd5 {[%clk 0:03:00]} 5. Bc4 {[%clk 0:03:02]}  Nb6 {[%clk 0:02:59]} 6. Bb3 {[%clk 0:03:02]}  c4 {[%clk 0:02:56]} 7. Bc2 {[%clk 0:03:02]}  Qc7 {[%clk 0:02:57]} 8. Qe2 {[%clk 0:03:03]}  g5 {[%clk 0:02:57]} 9. h3 {[%clk 0:03:03]}  Bg7 {[%clk 0:02:57]} 10. O-O {[%clk 0:03:01]}  Nxe5 {[%clk 0:02:58]} 11. Nxg5 {[%clk 0:03:02]}  h6 {[%clk 0:02:55]} 12. Nf3 {[%clk 0:02:59]}  d5 {[%clk 0:02:51]} 13. a4 {[%clk 0:02:58]}  a5 {[%clk 0:02:44]} 14. Re1 {[%clk 0:02:45]}  Nxf3+ {[%clk 0:02:13]} 15. Qxf3 {[%clk 0:02:45]}  Bd7 {[%clk 0:01:49]} 16. d4 {[%clk 0:02:23]}  cxd3 {[%clk 0:01:48]} 17. Bxd3 {[%clk 0:02:23]}  Bc6 {[%clk 0:01:30]} 18. Bf4 {[%clk 0:02:16]}  Qd7 {[%clk 0:01:22]} 19. Qh5 {[%clk 0:01:48]}  e6 {[%clk 0:01:11]} 20. Nd2 {[%clk 0:01:06]}  Bf6 {[%clk 0:00:58]} 21. Nf3 {[%clk 0:00:59]}  Rg8 {[%clk 0:00:45]} 22. Rxe6+ {[%clk 0:00:37]}  Qxe6 {[%clk 0:00:43]} 23. Re1 {[%clk 0:00:38]}  Qxe1+ {[%clk 0:00:16]} 24. Nxe1 {[%clk 0:00:39]}  Nd7 {[%clk 0:00:15]} 25. Bb5 {[%clk 0:00:28]}  O-O-O {[%clk 0:00:13]} 26. Nf3 {[%clk 0:00:20]}  Rde8 {[%clk 0:00:13]} 27. Qf5 {[%clk 0:00:19]}  Re6 {[%clk 0:00:12]} 28. Qh7 {[%clk 0:00:09]}  Rf8 {[%clk 0:00:05]} 29. Bxh6 {[%clk 0:00:08]}  Rfe8 {[%clk 0:00:05]} 30. Qxf7 {[%clk 0:00:07]}  Bxb5 {[%clk 0:00:04]} 31. axb5 {[%clk 0:00:07]}  Bd8 {[%clk 0:00:05]} 32. Bf4 {[%clk 0:00:05]}  R8e7 {[%clk 0:00:05]} 33. Qf5 {[%clk 0:00:04]}  Bc7 {[%clk 0:00:04]} 34. Bxc7 {[%clk 0:00:04]}  Kxc7 {[%clk 0:00:05]} 35. Qxd5 {[%clk 0:00:04]}  Rd6 {[%clk 0:00:05]} 36. Qc4+ {[%clk 0:00:04]}  Kb8 {[%clk 0:00:06]} 37. Qf4 {[%clk 0:00:04]}  Kc7 {[%clk 0:00:05]} 38. Nd4 {[%clk 0:00:03]}  Re5 {[%clk 0:00:06]} 39. g3 {[%clk 0:00:03]}  a4 {[%clk 0:00:05]} 40. h4 {[%clk 0:00:03]}  Rdd5 {[%clk 0:00:05]} 41. Nf3 {[%clk 0:00:03]}  Kb6 {[%clk 0:00:04]} 42. Nxe5 {[%clk 0:00:03]}  Nxe5 {[%clk 0:00:05]} 43. Kg2 {[%clk 0:00:04]}  Nd3 {[%clk 0:00:05]} 44. Qe3+ {[%clk 0:00:04]}  Kxb5 {[%clk 0:00:05]} 45. Qe4 {[%clk 0:00:04]}  Rd6 {[%clk 0:00:06]} 46. Qe3 {[%clk 0:00:03]}  Nxb2 {[%clk 0:00:06]} 47. Qe5+ {[%clk 0:00:03]}  Kc6 {[%clk 0:00:06]} 48. Qe4+ {[%clk 0:00:03]}  Kc7 {[%clk 0:00:05]} 49. Qe7+ {[%clk 0:00:03]}  Kc6 {[%clk 0:00:06]} 50. Qe4+ {[%clk 0:00:04]}  Kc7 {[%clk 0:00:05]} 51. Qb4 {[%clk 0:00:04]}  Rb6 {[%clk 0:00:05]} 52. Qc5+ {[%clk 0:00:04]}  Rc6 {[%clk 0:00:06]} 53. Qa5+ {[%clk 0:00:04]}  Kd6 {[%clk 0:00:02]} 54. Qb4+ {[%clk 0:00:04]}  Kd5 {[%clk 0:00:03]} 55. Qxb2 {[%clk 0:00:05]}  Ra6 {[%clk 0:00:02]} 56. Qxb7+ {[%clk 0:00:04]} 1-0


[Site "https://www.chess.com"]

[Event "Titled Tuesday Blitz May 10 Early 2022"]
[White "Al-Tarboush, Ward"]
[Black "Nilsen, Tobias Lang"]
[WhiteFideId "7601450"]
[BlackFideId "1521624"]
[WhiteElo "2294"]
[BlackElo "2014"]
[Result "0-1"]
[Round "11"]
[TimeControl "180+1"]
[Date "2022.05.11"]
[WhiteClock "0:00:07"]
[BlackClock "0:00:09"]

1. e4 {[%clk 0:02:00]}  e5 {[%clk 0:02:57]} 2. Nf3 {[%clk 0:02:00]}  Nc6 {[%clk 0:02:58]} 3. Bb5 {[%clk 0:02:01]}  Nf6 {[%clk 0:02:58]} 4. O-O {[%clk 0:01:59]}  Nxe4 {[%clk 0:02:58]} 5. d4 {[%clk 0:01:59]}  Nd6 {[%clk 0:02:57]} 6. Bxc6 {[%clk 0:01:59]}  dxc6 {[%clk 0:02:55]} 7. dxe5 {[%clk 0:01:59]}  Nf5 {[%clk 0:02:55]} 8. Qxd8+ {[%clk 0:01:58]}  Kxd8 {[%clk 0:02:56]} 9. Nc3 {[%clk 0:01:59]}  Be7 {[%clk 0:02:50]} 10. Rd1+ {[%clk 0:01:58]}  Ke8 {[%clk 0:02:49]} 11. Ne2 {[%clk 0:01:58]}  h6 {[%clk 0:02:49]} 12. Ng3 {[%clk 0:01:51]}  Nxg3 {[%clk 0:02:48]} 13. hxg3 {[%clk 0:01:52]}  Bf5 {[%clk 0:02:48]} 14. c3 {[%clk 0:01:51]}  Rd8 {[%clk 0:02:47]} 15. Be3 {[%clk 0:01:50]}  b6 {[%clk 0:02:46]} 16. Nd4 {[%clk 0:01:48]}  Bd7 {[%clk 0:02:46]} 17. Rd2 {[%clk 0:01:45]}  c5 {[%clk 0:02:46]} 18. Ne2 {[%clk 0:01:44]}  Be6 {[%clk 0:02:46]} 19. b3 {[%clk 0:01:37]}  Rxd2 {[%clk 0:02:46]} 20. Bxd2 {[%clk 0:01:38]}  Kd7 {[%clk 0:02:45]} 21. Nf4 {[%clk 0:01:36]}  Rd8 {[%clk 0:02:44]} 22. Rd1 {[%clk 0:01:35]}  Kc6 {[%clk 0:02:44]} 23. Nxe6 {[%clk 0:01:34]}  fxe6 {[%clk 0:02:44]} 24. Kf1 {[%clk 0:01:35]}  b5 {[%clk 0:02:40]} 25. Ke2 {[%clk 0:01:32]}  h5 {[%clk 0:02:38]} 26. Rh1 {[%clk 0:01:23]}  g6 {[%clk 0:02:38]} 27. f3 {[%clk 0:01:13]}  c4 {[%clk 0:02:36]} 28. bxc4 {[%clk 0:01:12]}  bxc4 {[%clk 0:02:15]} 29. Be3 {[%clk 0:01:12]}  a6 {[%clk 0:02:13]} 30. Bd4 {[%clk 0:01:08]}  Rd5 {[%clk 0:02:13]} 31. g4 {[%clk 0:01:03]}  h4 {[%clk 0:02:07]} 32. Rb1 {[%clk 0:00:54]}  Ra5 {[%clk 0:02:06]} 33. Rb2 {[%clk 0:00:54]}  Ba3 {[%clk 0:02:04]} 34. Rc2 {[%clk 0:00:48]}  Bc5 {[%clk 0:02:03]} 35. Ke3 {[%clk 0:00:40]}  g5 {[%clk 0:01:59]} 36. Ke4 {[%clk 0:00:39]}  Rb5 {[%clk 0:01:52]} 37. Rd2 {[%clk 0:00:25]}  Be7 {[%clk 0:01:51]} 38. Be3 {[%clk 0:00:23]}  Rb1 {[%clk 0:01:49]} 39. Rd4 {[%clk 0:00:19]}  Kb5 {[%clk 0:01:30]} 40. Rd7 {[%clk 0:00:18]}  Ba3 {[%clk 0:01:27]} 41. Rxc7 {[%clk 0:00:14]}  Re1 {[%clk 0:01:27]} 42. f4 {[%clk 0:00:09]}  Bc1 {[%clk 0:01:24]} 43. f5 {[%clk 0:00:09]}  Rxe3+ {[%clk 0:01:19]} 44. Kd4 {[%clk 0:00:09]}  Rd3+ {[%clk 0:00:43]} 45. Ke4 {[%clk 0:00:09]}  Re3+ {[%clk 0:00:32]} 46. Kd4 {[%clk 0:00:09]}  Rd3+ {[%clk 0:00:17]} 47. Ke4 {[%clk 0:00:10]}  exf5+ {[%clk 0:00:18]} 48. gxf5 {[%clk 0:00:08]}  Rxc3 {[%clk 0:00:09]} 49. f6 {[%clk 0:00:08]}  Re3+ {[%clk 0:00:10]} 50. Kf5 {[%clk 0:00:08]}  Re1 {[%clk 0:00:10]} 51. f7 {[%clk 0:00:08]}  Rf1+ {[%clk 0:00:10]} 52. Kg6 {[%clk 0:00:09]}  Ba3 {[%clk 0:00:10]} 53. Rb7+ {[%clk 0:00:09]}  Kc6 {[%clk 0:00:11]} 54. Ra7 {[%clk 0:00:09]}  Kb6 {[%clk 0:00:10]} 55. Ra8 {[%clk 0:00:10]}  c3 {[%clk 0:00:10]} 56. e6 {[%clk 0:00:10]}  c2 {[%clk 0:00:10]} 57. Rb8+ {[%clk 0:00:10]}  Kc7 {[%clk 0:00:10]} 58. e7 {[%clk 0:00:07]}  Bxe7 {[%clk 0:00:10]} 59. Re8 {[%clk 0:00:07]}  Kd7 {[%clk 0:00:09]} 0-1


[Site "https://www.chess.com"]

[Event "Titled Tuesday Blitz May 10 Early 2022"]
[White "Ardila, Oscar Humberto"]
[Black "Manukian, Artak"]
[WhiteFideId "4404742"]
[BlackFideId "13301373"]
[WhiteElo "1928"]
[BlackElo "2398"]
[Result "0-1"]
[Round "11"]
[TimeControl "180+1"]
[Date "2022.05.11"]
[WhiteClock "0:00:28"]
[BlackClock "0:00:23"]

1. d4 {[%clk 0:02:56]}  Nf6 {[%clk 0:02:59]} 2. c4 {[%clk 0:02:55]}  e6 {[%clk 0:02:58]} 3. Nc3 {[%clk 0:02:54]}  Bb4 {[%clk 0:02:57]} 4. Bd2 {[%clk 0:02:54]}  d5 {[%clk 0:02:56]} 5. cxd5 {[%clk 0:02:54]}  exd5 {[%clk 0:02:57]} 6. Nf3 {[%clk 0:02:55]}  O-O {[%clk 0:02:56]} 7. e3 {[%clk 0:02:55]}  Bg4 {[%clk 0:02:55]} 8. Be2 {[%clk 0:02:55]}  c6 {[%clk 0:02:51]} 9. O-O {[%clk 0:02:55]}  Re8 {[%clk 0:02:51]} 10. Rc1 {[%clk 0:02:55]}  Nbd7 {[%clk 0:02:49]} 11. Na4 {[%clk 0:02:55]}  Bd6 {[%clk 0:02:41]} 12. Nc5 {[%clk 0:02:54]}  Rb8 {[%clk 0:02:28]} 13. h3 {[%clk 0:02:52]}  Bh5 {[%clk 0:02:26]} 14. b4 {[%clk 0:02:44]}  a6 {[%clk 0:02:25]} 15. a4 {[%clk 0:02:43]}  Ne4 {[%clk 0:02:20]} 16. Be1 {[%clk 0:02:23]}  Qe7 {[%clk 0:01:56]} 17. Nd2 {[%clk 0:02:17]}  Bxe2 {[%clk 0:01:48]} 18. Qxe2 {[%clk 0:02:17]}  f5 {[%clk 0:01:49]} 19. Ndxe4 {[%clk 0:02:14]}  fxe4 {[%clk 0:01:45]} 20. Qg4 {[%clk 0:02:03]}  Nf6 {[%clk 0:01:39]} 21. Qh4 {[%clk 0:02:01]}  h6 {[%clk 0:01:27]} 22. Bd2 {[%clk 0:01:39]}  Rf8 {[%clk 0:01:09]} 23. f3 {[%clk 0:01:37]}  exf3 {[%clk 0:01:02]} 24. Rxf3 {[%clk 0:01:37]}  Rbe8 {[%clk 0:00:37]} 25. Rcf1 {[%clk 0:01:35]}  Bxc5 {[%clk 0:00:32]} 26. bxc5 {[%clk 0:01:31]}  Qe4 {[%clk 0:00:32]} 27. Qxe4 {[%clk 0:01:05]}  Nxe4 {[%clk 0:00:31]} 28. Rxf8+ {[%clk 0:01:02]}  Rxf8 {[%clk 0:00:32]} 29. Rxf8+ {[%clk 0:01:02]}  Kxf8 {[%clk 0:00:33]} 30. Be1 {[%clk 0:01:02]}  g5 {[%clk 0:00:32]} 31. g3 {[%clk 0:01:01]}  h5 {[%clk 0:00:32]} 32. Kg2 {[%clk 0:01:02]}  g4 {[%clk 0:00:32]} 33. Ba5 {[%clk 0:00:56]}  Kf7 {[%clk 0:00:30]} 34. hxg4 {[%clk 0:00:51]}  hxg4 {[%clk 0:00:30]} 35. Bc7 {[%clk 0:00:45]}  Ke6 {[%clk 0:00:30]} 36. Kf1 {[%clk 0:00:44]}  Kf5 {[%clk 0:00:29]} 37. a5 {[%clk 0:00:41]}  Nc3 {[%clk 0:00:27]} 38. Ke1 {[%clk 0:00:37]}  Ke4 {[%clk 0:00:25]} 39. Kf2 {[%clk 0:00:36]}  Nd1+ {[%clk 0:00:24]} 40. Ke2 {[%clk 0:00:32]}  Nxe3 {[%clk 0:00:25]} 41. Be5 {[%clk 0:00:30]}  Nf5 {[%clk 0:00:25]} 42. Kd2 {[%clk 0:00:28]}  Nxd4 {[%clk 0:00:25]} 43. Kc3 {[%clk 0:00:28]}  Kxe5 {[%clk 0:00:23]} 0-1


[Site "https://www.chess.com"]

[Event "Titled Tuesday Blitz May 10 Early 2022"]
[White "Aslanov, Umid"]
[Black "Przybylski, Wojciech"]
[WhiteFideId "13412620"]
[BlackFideId "1117599"]
[WhiteElo "1796"]
[BlackElo "2133"]
[Result "0-1"]
[Round "11"]
[TimeControl "180+1"]
[Date "2022.05.11"]
[WhiteClock "0:00:53"]
[BlackClock "0:00:08"]

1. e4 {[%clk 0:03:00]}  c5 {[%clk 0:02:55]} 2. Nf3 {[%clk 0:02:59]}  e6 {[%clk 0:02:55]} 3. c4 {[%clk 0:02:59]}  Nc6 {[%clk 0:02:54]} 4. Nc3 {[%clk 0:02:59]}  d6 {[%clk 0:02:52]} 5. d4 {[%clk 0:02:59]}  cxd4 {[%clk 0:02:52]} 6. Nxd4 {[%clk 0:03:00]}  Nf6 {[%clk 0:02:51]} 7. Be3 {[%clk 0:02:59]}  Qa5 {[%clk 0:02:49]} 8. Bd3 {[%clk 0:02:50]}  Ne5 {[%clk 0:02:48]} 9. O-O {[%clk 0:02:46]}  Nxd3 {[%clk 0:02:46]} 10. Qxd3 {[%clk 0:02:46]}  Be7 {[%clk 0:02:45]} 11. Nb3 {[%clk 0:02:47]}  Qd8 {[%clk 0:02:38]} 12. f3 {[%clk 0:02:46]}  O-O {[%clk 0:02:37]} 13. Rad1 {[%clk 0:02:45]}  a6 {[%clk 0:02:36]} 14. Na4 {[%clk 0:02:42]}  Bd7 {[%clk 0:02:34]} 15. Nb6 {[%clk 0:02:41]}  Rb8 {[%clk 0:02:33]} 16. Na5 {[%clk 0:02:40]}  Bc6 {[%clk 0:02:30]} 17. Qc3 {[%clk 0:02:39]}  Nd7 {[%clk 0:02:22]} 18. Nxd7 {[%clk 0:02:35]}  Bxd7 {[%clk 0:02:21]} 19. c5 {[%clk 0:02:32]}  dxc5 {[%clk 0:02:18]} 20. Bxc5 {[%clk 0:02:24]}  Bxc5+ {[%clk 0:01:55]} 21. Qxc5 {[%clk 0:02:25]}  b6 {[%clk 0:01:54]} 22. Qd6 {[%clk 0:02:21]}  bxa5 {[%clk 0:01:54]} 23. Qxd7 {[%clk 0:02:20]}  Qb6+ {[%clk 0:01:54]} 24. Kh1 {[%clk 0:02:20]}  Qxb2 {[%clk 0:01:53]} 25. Rd2 {[%clk 0:02:16]}  Qb5 {[%clk 0:01:51]} 26. Rfd1 {[%clk 0:02:16]}  h6 {[%clk 0:01:46]} 27. h3 {[%clk 0:02:14]}  a4 {[%clk 0:01:44]} 28. Qa7 {[%clk 0:02:12]}  Rb7 {[%clk 0:01:41]} 29. Qe3 {[%clk 0:02:09]}  Qb6 {[%clk 0:01:25]} 30. Qf4 {[%clk 0:02:06]}  Qa5 {[%clk 0:01:20]} 31. Qg3 {[%clk 0:01:53]}  a3 {[%clk 0:01:12]} 32. f4 {[%clk 0:01:52]}  Rb2 {[%clk 0:01:06]} 33. Rd7 {[%clk 0:01:51]}  Rxa2 {[%clk 0:00:58]} 34. f5 {[%clk 0:01:50]}  exf5 {[%clk 0:00:55]} 35. e5 {[%clk 0:01:49]}  Qb6 {[%clk 0:00:43]} 36. R7d6 {[%clk 0:01:40]}  Qf2 {[%clk 0:00:42]} 37. Qxf2 {[%clk 0:01:32]}  Rxf2 {[%clk 0:00:40]} 38. Rxa6 {[%clk 0:01:33]}  Re8 {[%clk 0:00:28]} 39. Rxa3 {[%clk 0:01:30]}  Rxe5 {[%clk 0:00:27]} 40. Ra7 {[%clk 0:01:28]}  Re8 {[%clk 0:00:22]} 41. Rdd7 {[%clk 0:01:26]}  Rf8 {[%clk 0:00:19]} 42. Kg1 {[%clk 0:01:26]}  Re2 {[%clk 0:00:16]} 43. Kh2 {[%clk 0:01:26]}  g6 {[%clk 0:00:15]} 44. Kg3 {[%clk 0:01:26]}  h5 {[%clk 0:00:15]} 45. Kf3 {[%clk 0:01:23]}  Re4 {[%clk 0:00:15]} 46. Rdc7 {[%clk 0:01:20]}  Kg7 {[%clk 0:00:13]} 47. Rd7 {[%clk 0:01:19]}  Re6 {[%clk 0:00:12]} 48. Kf4 {[%clk 0:01:17]}  Rf6 {[%clk 0:00:11]} 49. h4 {[%clk 0:01:16]}  Re8 {[%clk 0:00:11]} 50. Kf3 {[%clk 0:01:14]}  Re4 {[%clk 0:00:11]} 51. g3 {[%clk 0:01:14]}  Rb4 {[%clk 0:00:10]} 52. Rd8 {[%clk 0:01:14]}  f4 {[%clk 0:00:10]} 53. Raa8 {[%clk 0:01:11]}  Rb3+ {[%clk 0:00:09]} 54. Kg2 {[%clk 0:01:10]}  f3+ {[%clk 0:00:09]} 55. Kh3 {[%clk 0:01:06]}  Re6 {[%clk 0:00:08]} 56. Rg8+ {[%clk 0:01:02]}  Kf6 {[%clk 0:00:07]} 57. Ra4 {[%clk 0:01:02]}  Re5 {[%clk 0:00:06]} 58. Rf4+ {[%clk 0:01:01]}  Rf5 {[%clk 0:00:06]} 59. Ra4 {[%clk 0:00:54]}  Re3 {[%clk 0:00:06]} 60. Rf8 {[%clk 0:00:50]}  f2 {[%clk 0:00:05]} 61. Ra7 {[%clk 0:00:48]}  Re7 {[%clk 0:00:05]} 62. Ra6+ {[%clk 0:00:46]}  Re6 {[%clk 0:00:05]} 63. Ra1 {[%clk 0:00:46]}  f1=Q+ {[%clk 0:00:05]} 64. Rxf1 {[%clk 0:00:47]}  Rxf1 {[%clk 0:00:05]} 65. Kg2 {[%clk 0:00:48]}  Rf5 {[%clk 0:00:05]} 66. g4 {[%clk 0:00:48]}  hxg4 {[%clk 0:00:05]} 67. Kg3 {[%clk 0:00:49]}  Re3+ {[%clk 0:00:04]} 68. Kxg4 {[%clk 0:00:48]}  Rd5 {[%clk 0:00:04]} 69. Kf4 {[%clk 0:00:48]}  Rb3 {[%clk 0:00:04]} 70. Ke4 {[%clk 0:00:47]}  Ra5 {[%clk 0:00:04]} 71. Kd4 {[%clk 0:00:47]}  Rb4+ {[%clk 0:00:04]} 72. Kc3 {[%clk 0:00:47]}  Rxh4 {[%clk 0:00:04]} 73. Rc8 {[%clk 0:00:47]}  Rg5 {[%clk 0:00:04]} 74. Rc6+ {[%clk 0:00:47]}  Kg7 {[%clk 0:00:05]} 75. Rd6 {[%clk 0:00:47]}  Rg3+ {[%clk 0:00:05]} 76. Kc2 {[%clk 0:00:45]}  Rh2+ {[%clk 0:00:05]} 77. Rd2 {[%clk 0:00:46]}  Rxd2+ {[%clk 0:00:05]} 78. Kxd2 {[%clk 0:00:46]}  Rg4 {[%clk 0:00:05]} 79. Ke2 {[%clk 0:00:47]}  Rg5 {[%clk 0:00:05]} 80. Kf3 {[%clk 0:00:48]}  Rf5+ {[%clk 0:00:06]} 81. Ke3 {[%clk 0:00:49]}  Kf6 {[%clk 0:00:06]} 82. Ke4 {[%clk 0:00:50]}  g5 {[%clk 0:00:07]} 83. Kd4 {[%clk 0:00:51]}  g4 {[%clk 0:00:07]} 84. Ke3 {[%clk 0:00:52]}  g3 {[%clk 0:00:08]} 85. Ke4 {[%clk 0:00:53]} 0-1


[Site "https://www.chess.com"]

[Event "Titled Tuesday Blitz May 10 Early 2022"]
[White "Bas Mas, Jose Joaquin"]
[Black "Bai, Adelard"]
[WhiteFideId "22219064"]
[BlackFideId "16301188"]
[WhiteElo "2233"]
[BlackElo "2120"]
[Result "1-0"]
[Round "11"]
[TimeControl "180+1"]
[Date "2022.05.11"]
[WhiteClock "0:00:03"]
[BlackClock "0:00:06"]

1. e4 {[%clk 0:03:00]}  d5 {[%clk 0:02:55]} 2. exd5 {[%clk 0:02:58]}  Nf6 {[%clk 0:02:49]} 3. d4 {[%clk 0:02:52]}  Nxd5 {[%clk 0:02:42]} 4. Nf3 {[%clk 0:02:50]}  Bg4 {[%clk 0:02:42]} 5. Be2 {[%clk 0:02:49]}  e6 {[%clk 0:02:41]} 6. O-O {[%clk 0:02:48]}  c5 {[%clk 0:02:38]} 7. c4 {[%clk 0:02:48]}  Nf6 {[%clk 0:02:38]} 8. h3 {[%clk 0:02:15]}  Bh5 {[%clk 0:02:32]} 9. d5 {[%clk 0:02:04]}  exd5 {[%clk 0:02:26]} 10. cxd5 {[%clk 0:02:05]}  Bd6 {[%clk 0:02:23]} 11. Nc3 {[%clk 0:02:04]}  O-O {[%clk 0:02:23]} 12. Bg5 {[%clk 0:01:58]}  h6 {[%clk 0:02:16]} 13. Bh4 {[%clk 0:01:57]}  g5 {[%clk 0:01:58]} 14. Bg3 {[%clk 0:01:56]}  Bxg3 {[%clk 0:01:58]} 15. fxg3 {[%clk 0:01:56]}  Nbd7 {[%clk 0:01:55]} 16. g4 {[%clk 0:01:41]}  Bg6 {[%clk 0:01:51]} 17. Qd2 {[%clk 0:01:32]}  Re8 {[%clk 0:01:43]} 18. Rad1 {[%clk 0:01:30]}  a6 {[%clk 0:01:30]} 19. a4 {[%clk 0:01:28]}  Qb6 {[%clk 0:01:22]} 20. Kh1 {[%clk 0:01:22]}  Rad8 {[%clk 0:01:13]} 21. Bc4 {[%clk 0:01:22]}  Qd6 {[%clk 0:01:05]} 22. a5 {[%clk 0:01:07]}  Ne5 {[%clk 0:00:59]} 23. Nxe5 {[%clk 0:01:06]}  Rxe5 {[%clk 0:01:00]} 24. Qf2 {[%clk 0:01:00]}  Kg7 {[%clk 0:01:00]} 25. Na4 {[%clk 0:00:54]}  Ne4 {[%clk 0:00:55]} 26. Qf3 {[%clk 0:00:46]}  Rde8 {[%clk 0:00:46]} 27. Nc3 {[%clk 0:00:41]}  Nf6 {[%clk 0:00:33]} 28. Qg3 {[%clk 0:00:32]}  h5 {[%clk 0:00:28]} 29. gxh5 {[%clk 0:00:31]}  Nxh5 {[%clk 0:00:29]} 30. Qh2 {[%clk 0:00:24]}  g4 {[%clk 0:00:28]} 31. hxg4 {[%clk 0:00:20]}  Rh8 {[%clk 0:00:20]} 32. Kg1 {[%clk 0:00:20]}  Nf6 {[%clk 0:00:12]} 33. Qf4 {[%clk 0:00:20]}  Rhe8 {[%clk 0:00:04]} 34. Rf2 {[%clk 0:00:15]}  Nd7 {[%clk 0:00:05]} 35. Rdf1 {[%clk 0:00:13]}  Qe7 {[%clk 0:00:03]} 36. d6 {[%clk 0:00:13]}  Qxd6 {[%clk 0:00:03]} 37. Bxf7 {[%clk 0:00:08]}  Rf8 {[%clk 0:00:03]} 38. Qc4 {[%clk 0:00:04]}  Nf6 {[%clk 0:00:03]} 39. Bxg6 {[%clk 0:00:03]}  Kxg6 {[%clk 0:00:03]} 40. g5 {[%clk 0:00:04]}  Rxg5 {[%clk 0:00:03]} 41. Ne4 {[%clk 0:00:03]}  Qd4 {[%clk 0:00:03]} 42. Qxd4 {[%clk 0:00:03]}  cxd4 {[%clk 0:00:04]} 43. Rxf6+ {[%clk 0:00:03]}  Rxf6 {[%clk 0:00:04]} 44. Rxf6+ {[%clk 0:00:04]}  Kg7 {[%clk 0:00:05]} 45. Nxg5 {[%clk 0:00:04]}  Kxf6 {[%clk 0:00:06]} 46. Nf3 {[%clk 0:00:03]}  d3 {[%clk 0:00:06]} 47. Kf2 {[%clk 0:00:03]} 1-0


[Site "https://www.chess.com"]